Cogmind - Beta 14 @@@ ROGUE MODE // 2025.03.15 @ 12:51:30 Player: Lava Result: Destroyed by G-47 Trooper with Particle Gun Performance ------------- Evolutions (1) 500 Regions Visited (2) 400 Robots Destroyed (38) 190 Value Destroyed (793) 793 Prototype IDs (0) 0 Alien Tech Used (0) 0 Bonus (0) 0 TOTAL SCORE: 1883 Bonus ------- None Cogmind --------- Core Integrity 0/400 Matter 259/300 Energy 104/125 System Corruption 0% Temperature Cool (47) Movement Walking (190) Ox1 Location -9/Materials Parts ------- > --- POWER (1) -------- Light Ion Engine > --- PROPULSION (2) --- Aluminum Leg Aluminum Leg > --- UTILITY (4) ------ Large Storage Unit Structural Scanner ECM Suite Hacking Suite > --- WEAPON (2) ------- Particle Gun Light Assault Rifle > --- INVENTORY (15) --- Light Ion Engine Aluminum Leg Aluminum Leg High-capacity Storage Unit Signal Interpreter Signal Interpreter Signal Interpreter Terrain Scanner Terrain Scan Processor ECM Suite ECM Suite Grenade Launcher Grenade Launcher Mini Grenade Launcher Mining Claw Peak State ------------ > --- POWER ------------ Light Ion Engine > --- PROPULSION ------- Aluminum Leg Aluminum Leg > --- UTILITY ---------- Large Storage Unit Structural Scanner ECM Suite Hacking Suite > --- WEAPON ----------- Particle Gun Mini Grenade Launcher > --- INVENTORY -------- Light Treads Aluminum Leg Aluminum Leg High-capacity Storage Unit Signal Interpreter Signal Interpreter Signal Interpreter Terrain Scan Processor ECM Suite ECM Suite Light Assault Rifle Grenade Launcher Grenade Launcher Mining Claw [Rating: 14] Favorites ----------- Power Light Ion Engine Engine Light Ion Engine Propulsion Light Treads Treads Light Treads Leg Aluminum Leg Utility ECM Suite Device ECM Suite Storage Large Storage Unit Hackware Hacking Suite Weapon Assault Rifle Energy Gun Particle Gun Ballistic Gun Assault Rifle Launcher Mini Grenade Launcher Slashing Weapon Mining Claw Build | -11 -10 -9 ------- Run | Yrd Mat Mat Slots Evolved 2 | . . 2 Power . | . . . Propulsion . | . . . Utility 2 | . . 2 Weapon . | . . . Parts Attached 46 | 6 16 24 Power 4 | 1 1 2 Engine 4 | 1 1 2 Core . | . . . Reactor . | . . . Propulsion 8 | 2 . 6 Treads 4 | 2 . 2 Leg 4 | . . 4 Wheel . | . . . Hover . | . . . Flight . | . . . Utility 8 | 1 2 5 Device 3 | . 1 2 Storage 4 | 1 1 2 Processor . | . . . Hackware 1 | . . 1 Protection . | . . . Artifact . | . . . Weapon 26 | 2 13 11 Energy Gun 1 | . . 1 Energy Cannon . | . . . Ballistic Gun 14 | 2 7 5 Ballistic Cannon . | . . . Launcher 3 | . 1 2 Special Weapon . | . . . Impact Weapon . | . . . Slashing Weapon 8 | . 5 3 Piercing Weapon . | . . . Special Melee Weapon . | . . . Unidentified Prototypes . | . . . Parts Lost 14 | . 2 12 Power 3 | . 1 2 Propulsion 5 | . 1 4 Utility 1 | . . 1 Weapon 5 | . . 5 Highest Loss Streak 4 | . 1 4 To Critical Strikes . | . . . Average Slot Usage (%) 88 | . 87 90 Engine 13 | . 13 10 Treads 15 | . 16 10 Leg 1 | . . 8 Device 15 | . 13 22 Storage 13 | . 14 11 Hackware 2 | . . 11 Ballistic Gun 21 | . 23 11 Slashing Weapon 3 | . 4 2 Peak Build Rating 14 | 6 8 14 Average Rating 7 | 2 7 11 On Entrance 4 | . 6 7 Naked Turns . | . . . Heaviest Build 33 | 14 28 33 Greatest Support 40 | 40 40 40 Greatest Overweight (x) 2 | 1 1 2 Average Overweight (x) . | . . . Largest Inventory Capacity 20 | 8 15 20 Average Capacity 13 | 7 13 15 Most Carried 15 | 8 15 15 Average Carried 11 | 6 11 13 Final Capacity 15 | 8 15 15 Final Carried 15 | 6 15 15 Class Distribution -------------------- 80% | Mutant 9% | Infiltrator-Mutant 9% | Scavenger-Mutant Dominant Class ---------------- Mutant | -10/Materials Scavenger-Mutant | -9/Materials Resources | -11 -10 -9 ----------- Run | Yrd Mat Mat Matter Collected 1094 | 168 380 546 Remotely . | . . . Salvage Created 946 | . 353 593 Parts 88 | . 37 51 Haulers Intercepted . | . . . Recyclers Shooed 1 | . 1 . Parts Field Recycled . | . . . Retrieved Matter . | . . . Parts Self-Destructed . | . . . Prevented . | . . . Kills | -11 -10 -9 ------- Run | Yrd Mat Mat Combat Hostiles Destroyed 26 | . 10 16 Melee 1 | . . 1 Guns 21 | . 10 11 AOE 4 | . . 4 Classes Destroyed 8 | . 5 3 Worker 2 | . . 2 Builder 4 | . 1 3 Recycler 1 | . . 1 Operator 2 | . 2 . Watcher 3 | . 3 . Swarmer 12 | . 5 7 Grunt 11 | . 5 6 Sentry 3 | . . 3 Best Kill Streak 7 | . 3 7 Combat Bots Only 4 | . 3 4 Max Kills in Single Turn 2 | . 1 2 Gunslinging . | . . . Exploded 2 | . . 2 Melee 1 | . . 1 Uniques/NPCs Destroyed . | . . . Combat | -11 -10 -9 -------- Run | Yrd Mat Mat Hostile Shots Fired 196 | . 66 130 Missed 42 | . 14 28 Damage Taken 2066 | . 601 1465 Core 533 | . 123 410 Absorbed by Shields . | . . . Core Remaining (%) 75 | 100 50 . Volleys Fired 133 | . 59 74 Largest 2 | . 2 2 Hottest 85 | . 50 85 Shots Fired 232 | . 118 114 Gun 227 | . 117 110 Cannon . | . . . Launcher 5 | . 1 4 Special . | . . . Kinetic 223 | . 117 106 Thermal 4 | . . 4 Explosive 5 | . 1 4 Electromagnetic . | . . . Robot Hit Streak 15 | . 10 15 Robot Miss Streak 5 | . 5 3 Penetration Max . | . . . Secondary Targets 2 | . 2 . Max Gunslinging Chain 1 | . 1 . Shots Hit Robots 152 | . 68 84 Core Hits 61 | . 25 36 Critical Kills 1 | . . 1 Critical Parts Destroyed . | . . . Critical Strikes 1 | . . 1 Destroy 1 | . . 1 Melee Attacks 29 | . 23 6 Impact . | . . . Slashing 29 | . 23 6 Piercing . | . . . Sneak Attacks 2 | . 2 . Combat Hostiles . | . . . Follow-up Attacks . | . . . Damage Inflicted 2586 | . 879 1707 Guns 1602 | . 719 883 Cannons . | . . . Explosions 767 | . 35 732 Melee 188 | . 96 92 Ramming 29 | . 29 . Kinetic 1585 | . 719 866 Thermal 385 | . . 385 Explosive 399 | . 35 364 Electromagnetic . | . . . Impact . | . . . Slashing 188 | . 96 92 Piercing . | . . . Highest Corruption 1 | . 1 . Average Corruption 1 | . 1 . Corruption Purged . | . . . Corruption Blocked . | . . . Effects 16 | . 16 . Message Errors 4 | . 4 . Matter Fused 4 | . 4 . Heat Flow Errors 4 | . 4 . Energy Discharges 1 | . 1 . Data Loss (minor) 3 | . 3 . Overload Shots . | . . . Overflow Damage 212 | . . 212 Projectiles . | . . . Explosions 212 | . . 212 Melee . | . . . Knockbacks . | . . . Impact . | . . . Kinetic . | . . . Secondary . | . . . Self-Inflicted Damage 270 | . 35 235 Shots 4 | . 1 3 Rammed 10 | . 10 . Targets Rammed 10 | . 10 . Kicked . | . . . Crushed . | . . . Highest Temperature 269 | . 269 56 Average Temperature 45 | . 74 11 Received Heat Transfer 681 | . 249 432 Effects 1 | . 1 . Energy Bleed 1 | . 1 . Siege Activations . | . . . Robots Corrupted . | . . . Combat Hostiles . | . . . Parts Fried . | . . . Impact Corruptions . | . . . Robots Melted . | . . . Combat Hostiles . | . . . Parts Melted 1 | . . 1 Heat Transferred 237 | . . 237 Parts Sabotaged . | . . . Parts Stolen . | . . . Parts Stripped . | . . . Power Chain Reactions . | . . . Alert | -11 -10 -9 ------- Run | Yrd Mat Mat Peak Influence 375 | . 164 375 Initial 1 | . . 1 Average 37 | . 22 95 Maximum Alert Level 1 | . . 1 Low Security (%) 96 | 100 100 83 Level 1 3 | . . 16 Level 2 . | . . . Level 3 . | . . . Level 4 . | . . . Level 5 . | . . . High Security . | . . . Max Security . | . . . Squads Dispatched 3 | . 3 . Investigation 1 | . 1 . Extermination . | . . . Reinforcement 2 | . 2 . Assault . | . . . Garrison . | . . . Intercept . | . . . Searches Triggered . | . . . Construction Impeded . | . . . Haulers Reinforced . | . . . Active Scanning Responses . | . . . Cargo Convoy Interrupts . | . . . Stealth | -11 -10 -9 --------- Run | Yrd Mat Mat Distress Signals 4 | . 1 3 Communications Jammed . | . . . Distress Signals . | . . . Times Spotted 45 | . 21 24 Peak Tracking Total 4 | . 4 4 Tactical Retreats 5 | . 2 3 Traps | -11 -10 -9 ------- Run | Yrd Mat Mat Traps Triggered 2 | . 2 . Indirectly . | . . . Trap Hack Attempts . | . . . Triggered . | . . . Disarmed 1 | . . 1 Reprogrammed 1 | . 1 . Reused . | . . . Traps Extracted . | . . . Installed . | . . . Triggered . | . . . Machines | -11 -10 -9 ---------- Run | Yrd Mat Mat Machines Disabled 3 | . . 3 Max in Single Turn 2 | . . 2 Machines Repaired . | . . . Machines Dismantled . | . . . Machines Sabotaged . | . . . Overloaded Fab Kills . | . . . Hacking | -11 -10 -9 --------- Run | Yrd Mat Mat Machines Accessed 9 | . 5 4 Terminals 9 | . 5 4 Fabricators . | . . . Repair Stations . | . . . Recycling Units . | . . . Scanalyzers . | . . . Garrison Access . | . . . Total Hacks 22 | . 10 12 Successful 12 | . 3 9 Failed 10 | . 7 3 Catastrophic 1 | . 1 . Database Lockouts . | . . . Manual 2 | . 2 . Terminals 22 | . 10 12 Fabricators . | . . . Repair Stations . | . . . Recycling Units . | . . . Scanalyzers . | . . . Garrison Access . | . . . Terminal Hacks 12 | . 3 9 Emergency Access Points 1 | . . 1 Disarm Traps 1 | . . 1 Reprogram Traps 1 | . 1 . Dispatch Records 2 | . . 2 Patrol Status 1 | . . 1 Reinforcement Status 1 | . . 1 Recall Investigation 1 | . 1 . Hauler Manifests 1 | . . 1 Zone Layout 3 | . 1 2 Fabricator Hacks . | . . . Repair Station Hacks . | . . . Recycling Unit Hacks . | . . . Scanalyzer . | . . . Garrison Access Hacks . | . . . Unauthorized Hacks . | . . . Terminals . | . . . Fabricators . | . . . Repair Stations . | . . . Recycling Units . | . . . Scanalyzers . | . . . Garrison Access . | . . . Data Cores Recovered . | . . . Used . | . . . Hacking Detections 8 | . 4 4 Full Trace Events . | . . . Feedback Events . | . . . Feedback Blocked . | . . . Robot Schematics Acquired . | . . . Robots Built . | . . . Authchips . | . . . Time . | . . . Total Robot Build Rating . | . . . Part Schematics Acquired . | . . . Parts Built . | . . . Authchips . | . . . Time . | . . . Total Part Build Rating . | . . . Parts Repaired . | . . . Time . | . . . Parts Recycled . | . . . Recycled Matter . | . . . Retrieved Matter . | . . . Retrieved Components . | . . . Parts Scanalyzed . | . . . Part Schematics Acquired . | . . . Parts Damaged . | . . . Bothacking | -11 -10 -9 ------------ Run | Yrd Mat Mat Used RIF Installer . | . . . Robots Hacked . | . . . Non-combat . | . . . Combat . | . . . Robot Hacks Applied . | . . . Relay Couplers Released . | . . . Fabnet Peak Effective % . | . . . Robots Rewired . | . . . Allies Hacked . | . . . Hacks Repelled . | . . . Allies | -11 -10 -9 -------- Run | Yrd Mat Mat Total Allies . | . . . Largest Group . | . . . Highest-Rated Group . | . . . Highest-Rated Ally . | . . . Total Orders . | . . . Ally Attacks . | . . . Total Damage . | . . . Kills . | . . . Allies Corrupted . | . . . Allies Melted . | . . . Intel | -11 -10 -9 ------- Run | Yrd Mat Mat Robot Analysis Total . | . . . Derelict Logs Recovered . | . . . Drone Launches . | . . . Drone Recoveries . | . . . Exploration | -11 -10 -9 ------------- Run | Yrd Mat Mat Turns Passed 4091 | 75 3185 831 Spaces Moved 1665 | 40 1327 298 Core 7 | 7 . . Treads 1528 | 33 1327 168 Legs 130 | . . 130 Wheels . | . . . Hover . | . . . Flight . | . . . Fastest Speed 50 | 50 160 160 Average Speed 209 | 148 216 187 Slowest Speed 260 | 160 240 260 Overloaded Moves . | . . . Propulsion Burnouts . | . . . Robots Hopped . | . . . Cave-ins Triggered . | . . . Exploration Rate (%) 44 | 4 100 30 Regions Visited 2 Branch Regions . Pre-discovered Areas . | . . . Known Exits Taken . | . . . Unknown Exits Taken 2 | 1 1 . Scrap Searched . | . . . Spaces Dug 14 | . 13 1 Terrain Destroyed 82 | . 16 66 Melee 14 | . 13 1 Projectile . | . . . AOE 68 | . 3 65 Terrain Rammed . | . . . Walls Destroyed . | . . . Machines Disabled . | . . . Actions | -11 -10 -9 --------- Run | Yrd Mat Mat Total 1977 | 55 1469 453 Wait 45 | . 14 31 Move 1663 | 39 1326 298 Hop . | . . . Pick Up 40 | 10 14 16 Fast Attach 6 | 2 3 1 Attach 21 | 4 . 17 Detach 2 | . . 2 Swap 19 | . 13 6 Drop 9 | . 7 2 Fire 133 | . 59 74 Melee 29 | . 23 6 Ram . | . . . Kick . | . . . Crush 10 | . 10 . Escape Stasis . | . . . Rewire . | . . . Trap . | . . . Miscellaneous . | . . . Route ------- -11/Scrapyard -10/Materials (discovered 5 exits: *Mat x3 / [*Min] / [*Sub]) -9/Materials (discovered 2 exits: [*Mat] / [*Sto]) History --------- Turn | Location | Event 22 | -11/Scrapyard | Discovered new exit (range 15) 76 | -11/Scrapyard | Entered Materials 301 | -10/Materials | Discovered new exit (range 13) 311 | -10/Materials | Build established: Mutant 681 | -10/Materials | Discovered new exit (range 16) 858 | -10/Materials | Discovered new exit (range 14) 1062 | -10/Materials | Discovered new exit (range 4) 1908 | -10/Materials | Discovered new exit (range 13) 3261 | -10/Materials | Entered another Materials area 3261 | -9/Materials | Evolved 2 slots: Utility x2 3392 | -9/Materials | Discovered new exit (range 14) 3479 | -9/Materials | Lost 3 parts (1n2w) 3555 | -9/Materials | Build established: Infiltrator-Mutant 3684 | -9/Materials | Core integrity fell below 50% 3714 | -9/Materials | Lost 4 parts (1p2n1w) 3840 | -9/Materials | Discovered new exit (range 7) 3943 | -9/Materials | Core integrity fell below 20% 3965 | -9/Materials | Build established: Scavenger-Mutant 4021 | -9/Materials | Lost 3 parts (1p1n1w) 4092 | -9/Materials | Destroyed by G-47 Trooper with Particle Gun Last Messages --------------- Terminal disabled. S-10 Pest destroyed. U-05 Engineer lays Concrete. Acquired 8 matter. U-05 Engineer lays Concrete. Acquired Terrain Scanner. The unstable cave ceiling collapses. U-05 Engineer lays Concrete. Dropped Lgt. Treads. Acquired Lgt. Ion Engine. U-05 Engineer lays Concrete. The unstable cave ceiling collapses. U-05 Engineer lays Concrete. Acquired 12 matter. U-05 Engineer builds a Wall. U-05 Engineer lays Concrete. U-05 Engineer builds a Wall. U-05 Engineer lays Concrete. U-05 Engineer builds a Wall. U-05 Engineer lays Concrete. Map ----- +----------------------------------------------------+ | # ## # #### !// ############# ???????? | | # ######### #### ! // ##???######## ???????? | | ############### #### * ###??# # ???????? | | ########?###### #### *= ###??# """ # ???????? | | ##???????###### #### !% = ##??# """ # ???????? | | ##??????? #######+######## """ + ???????? | | ##??????? [ ! ###### # ???????? | | ##??????? [ + # ???????? | | ###### ?? = ############ ???????? | | ###### % " "#####?????# ???????? | | ####### """ """ T T##?????####+???????? | | ####### """ """ " "######## ???????? | | ##??### """ """ ######### """???????? | | # # ?? # =! + """???????? | | # ? # %=######### """???????? | | ?? < ######+# ! | ######### ???????? | | ?? ## * ######### ???????? | | ??###### ## """" # ########### ???????? | | ??####### ? ### """" ### u# # # ???????? | | ??????????? #?# """" ## #####???????? | | ??????????? #?# # | # * # ???????? | | ??????????? #?######### # # ???????? | | ??????????? #???????## [ # ???????? | | ??????????? #???????## =* # ???????? | | ??????????? #???????## # ???????? | | ??????????? #???????## @ # ???????? | | ????????????????????## # ??????????? | | ????????????????????## # # ??????????? | | ????????????????????## # ##??????????? | | ????????????????????####m ### ##??????????? | | ????????????????????#### ### ##??????????? | | ??????????????????????## ##?? ##??????????? | | ??????????????????????##g ##??? ##??????????? | | ?????????????????????? ##???? ##??????????? | | ??????????????????????###+###?????? ##??????????? | | ?????????????????????? ???????###??????????? | | ?????????????????????????????????????????????????? | | ?????????????????????????????????????????????????? | | ?????????????????????????????????????????????????? | | ?????????????????????????????????????????????????? | | ?????????????????????????????????????????????????? | | ?????????????????????????????????????????????????? | | ?????????????????????????????????????????????????? | | ?????????????????????????????????????????????????? | | ?????????????????????????????????????????????????? | | ?????????????????????????????????????????????????? | | ?????????????????????????????????????????????????? | | ?????????????????????????????????????????????????? | | ?????????????????????????????????????????????????? | | ?????????????????????????????????????????????????? | +----------------------------------------------------+ Best States ------------- Heat Dissipation 28 Energy Generation 10 Energy Capacity 250 Matter Stores 300 Matter Capacity 300 Sight Range 16 Terrain Scan Density 10 ECM Strength 1 Evasion (%) 40 Recoil Reduction 2 Offensive Hacking 10 Item Schematics ----------------- None Robot Schematics ------------------ None Fabricated ------------ Nothing Alien Tech Used ----------------- None Achievements -------------- None Challenges ------------ None Game ------ Seed DisposableLobotomyPendant Manual? 0 Play Time 00:22:00 Cumulative 14.7 hours Start 2025.03.15 @ 12:29:50 End 2025.03.15 @ 12:51:30 Sessions 1 Manual Loads 0 Difficulty Rogue Special Mode None Game No. 21 Rogue 21 Adventurer 0 Explorer 0 Win Type - Total 0 Types 0/0/0/0/0/0/0/0/0 Lore% 11 Gallery% 19 Achievement% 20 Wizard Run 0 Options --------- Layout 1 ASCII 0 Keyboard 0 Movement Mouse Keybinds 0 Fullscreen 1 Font 32/SmallcapsGlow Map View 50x40 Zoom Use 0% Tactical HUD 0 Map Filters NONE Filters NONE Steam 1 RUN: 93119442-8ab6-47fe-a887-d21eb0112d43